[Event "Titled Tuesday Blitz November 07 Early 2023"]
[White "FuenfgegenWilly"]
[Black "Ambartsumova, Karina"]
[BlackFideId "4166299"]
[WhiteElo "2407"]
[BlackElo "2609"]
[Result "0-1"]
[Round "4"]
[TimeControl "180+1"]
[Date "2023.11.07"]
[WhiteClock "0:00:09"]
[BlackClock "0:00:09"]
[Board "122"]

1. d4 {[%clk 0:02:59]}  Nf6 {[%clk 0:02:59]} 2. Nf3 {[%clk 0:02:58]}  e6 {[%clk 0:02:58]} 3. Bf4 {[%clk 0:02:58]}  b6 {[%clk 0:02:54]} 4. e3 {[%clk 0:02:56]}  Bb7 {[%clk 0:02:46]} 5. Bd3 {[%clk 0:02:55]}  Nh5 {[%clk 0:02:45]} 6. Bg5 {[%clk 0:02:49]}  Be7 {[%clk 0:02:45]} 7. Bxe7 {[%clk 0:02:49]}  Qxe7 {[%clk 0:02:46]} 8. O-O {[%clk 0:02:49]}  d6 {[%clk 0:02:46]} 9. c4 {[%clk 0:02:45]}  Nd7 {[%clk 0:02:46]} 10. Nc3 {[%clk 0:02:46]}  Nhf6 {[%clk 0:02:42]} 11. e4 {[%clk 0:02:44]}  e5 {[%clk 0:02:42]} 12. Nd5 {[%clk 0:02:34]}  Qd8 {[%clk 0:02:26]} 13. Qd2 {[%clk 0:02:11]}  O-O {[%clk 0:02:22]} 14. Rad1 {[%clk 0:02:10]}  c6 {[%clk 0:02:20]} 15. Ne3 {[%clk 0:02:09]}  g6 {[%clk 0:02:06]} 16. Rfe1 {[%clk 0:01:55]}  Qe7 {[%clk 0:02:06]} 17. d5 {[%clk 0:01:54]}  c5 {[%clk 0:01:54]} 18. a3 {[%clk 0:01:45]}  Ne8 {[%clk 0:01:54]} 19. b4 {[%clk 0:01:41]}  Ng7 {[%clk 0:01:54]} 20. Ng4 {[%clk 0:01:18]}  Rae8 {[%clk 0:01:34]} 21. Qh6 {[%clk 0:01:16]}  f6 {[%clk 0:01:24]} 22. b5 {[%clk 0:01:12]}  Nh5 {[%clk 0:01:18]} 23. a4 {[%clk 0:01:07]}  Nf4 {[%clk 0:01:11]} 24. Bb1 {[%clk 0:01:01]}  Bc8 {[%clk 0:00:48]} 25. g3 {[%clk 0:01:00]}  Nh5 {[%clk 0:00:48]} 26. Ne3 {[%clk 0:00:58]}  Ng7 {[%clk 0:00:38]} 27. a5 {[%clk 0:00:55]}  f5 {[%clk 0:00:38]} 28. exf5 {[%clk 0:00:54]}  gxf5 {[%clk 0:00:38]} 29. Ng5 {[%clk 0:00:38]}  Nf6 {[%clk 0:00:38]} 30. Ng4 {[%clk 0:00:38]}  Ngh5 {[%clk 0:00:34]} 31. Nxf6+ {[%clk 0:00:22]}  Nxf6 {[%clk 0:00:34]} 32. f4 {[%clk 0:00:19]}  e4 {[%clk 0:00:31]} 33. Qh3 {[%clk 0:00:19]}  Qg7 {[%clk 0:00:28]} 34. Ne6 {[%clk 0:00:18]}  Bxe6 {[%clk 0:00:23]} 35. dxe6 {[%clk 0:00:19]}  Ng4 {[%clk 0:00:23]} 36. Rxd6 {[%clk 0:00:17]}  Qc3 {[%clk 0:00:22]} 37. Red1 {[%clk 0:00:15]}  Qe3+ {[%clk 0:00:23]} 38. Kg2 {[%clk 0:00:14]}  Qf3+ {[%clk 0:00:18]} 39. Kg1 {[%clk 0:00:14]}  Nf2 {[%clk 0:00:11]} 40. Qh4 {[%clk 0:00:11]}  Nxd1 {[%clk 0:00:09]} 41. Rd7 {[%clk 0:00:09]}  Qf2+ {[%clk 0:00:09]} 0-1


[Site "https://www.chess.com"]

[Event "Titled Tuesday Blitz November 07 Early 2023"]
[White "Ozates, Tuna"]
[Black "Ovezdurdyyeva, Jemal"]
[WhiteFideId "6354521"]
[BlackFideId "14001888"]
[WhiteElo "2606"]
[BlackElo "2369"]
[Result "1-0"]
[Round "4"]
[TimeControl "180+1"]
[Date "2023.11.07"]
[WhiteClock "0:00:17"]
[BlackClock "0:00:14"]
[Board "123"]

1. e4 {[%clk 0:03:00]}  d6 {[%clk 0:02:59]} 2. d4 {[%clk 0:02:59]}  Nf6 {[%clk 0:03:00]} 3. Nc3 {[%clk 0:02:58]}  g6 {[%clk 0:03:00]} 4. Nf3 {[%clk 0:02:58]}  c6 {[%clk 0:03:01]} 5. a4 {[%clk 0:02:57]}  Bg7 {[%clk 0:03:00]} 6. Be2 {[%clk 0:02:55]}  O-O {[%clk 0:03:00]} 7. O-O {[%clk 0:02:56]}  Nbd7 {[%clk 0:02:56]} 8. h3 {[%clk 0:02:52]}  e5 {[%clk 0:02:56]} 9. d5 {[%clk 0:02:50]}  Nc5 {[%clk 0:02:52]} 10. Nd2 {[%clk 0:02:45]}  a5 {[%clk 0:02:49]} 11. dxc6 {[%clk 0:02:36]}  bxc6 {[%clk 0:02:48]} 12. f3 {[%clk 0:02:29]}  Nh5 {[%clk 0:02:46]} 13. Nc4 {[%clk 0:02:26]}  Ng3 {[%clk 0:02:31]} 14. Re1 {[%clk 0:02:25]}  Nxe2+ {[%clk 0:02:29]} 15. Nxe2 {[%clk 0:02:21]}  d5 {[%clk 0:02:28]} 16. exd5 {[%clk 0:02:15]}  cxd5 {[%clk 0:02:28]} 17. Ne3 {[%clk 0:02:12]}  Be6 {[%clk 0:02:21]} 18. c3 {[%clk 0:02:08]}  Rb8 {[%clk 0:02:20]} 19. b4 {[%clk 0:02:05]}  Nd7 {[%clk 0:02:06]} 20. b5 {[%clk 0:02:00]}  Re8 {[%clk 0:02:02]} 21. Ba3 {[%clk 0:01:56]}  Qc7 {[%clk 0:02:02]} 22. Nxd5 {[%clk 0:01:49]}  Bxd5 {[%clk 0:01:58]} 23. Qxd5 {[%clk 0:01:50]}  Rbd8 {[%clk 0:01:58]} 24. Red1 {[%clk 0:01:26]}  Nb6 {[%clk 0:01:57]} 25. Qb3 {[%clk 0:01:17]}  Nc4 {[%clk 0:01:56]} 26. Ng3 {[%clk 0:01:04]}  Ne3 {[%clk 0:01:41]} 27. Rxd8 {[%clk 0:01:01]}  Rxd8 {[%clk 0:01:40]} 28. Ne4 {[%clk 0:00:57]}  Nc4 {[%clk 0:01:03]} 29. Bc5 {[%clk 0:00:21]}  Nd2 {[%clk 0:00:53]} 30. Qa3 {[%clk 0:00:21]}  Nxe4 {[%clk 0:00:49]} 31. fxe4 {[%clk 0:00:22]}  Rd2 {[%clk 0:00:44]} 32. b6 {[%clk 0:00:20]}  Qb7 {[%clk 0:00:43]} 33. Re1 {[%clk 0:00:20]}  Bh6 {[%clk 0:00:29]} 34. Qb3 {[%clk 0:00:19]}  Kg7 {[%clk 0:00:27]} 35. Qb5 {[%clk 0:00:19]}  f5 {[%clk 0:00:27]} 36. Qxa5 {[%clk 0:00:17]}  fxe4 {[%clk 0:00:26]} 37. Qa7 {[%clk 0:00:18]}  Qxa7 {[%clk 0:00:20]} 38. bxa7 {[%clk 0:00:19]}  Rd8 {[%clk 0:00:20]} 39. Rxe4 {[%clk 0:00:17]}  Kf6 {[%clk 0:00:14]} 40. Rb4 {[%clk 0:00:17]} 1-0


[Site "https://www.chess.com"]

[Event "Titled Tuesday Blitz November 07 Early 2023"]
[White "Tasev, Dejan"]
[Black "Vifleemskaia, Svetlana"]
[WhiteFideId "936618"]
[BlackFideId "4129490"]
[WhiteElo "2602"]
[BlackElo "2290"]
[Result "1-0"]
[Round "4"]
[TimeControl "180+1"]
[Date "2023.11.07"]
[WhiteClock "0:01:29"]
[BlackClock "0:00:04"]
[Board "125"]

1. e4 {[%clk 0:03:00]}  e5 {[%clk 0:02:58]} 2. Nf3 {[%clk 0:03:00]}  Nc6 {[%clk 0:02:58]} 3. Bc4 {[%clk 0:02:59]}  Nf6 {[%clk 0:02:58]} 4. d3 {[%clk 0:02:59]}  Be7 {[%clk 0:02:57]} 5. Nc3 {[%clk 0:02:59]}  O-O {[%clk 0:02:58]} 6. O-O {[%clk 0:02:59]}  d6 {[%clk 0:02:59]} 7. Bb3 {[%clk 0:02:59]}  Na5 {[%clk 0:02:58]} 8. h3 {[%clk 0:02:59]}  Nxb3 {[%clk 0:02:58]} 9. axb3 {[%clk 0:03:00]}  a6 {[%clk 0:02:58]} 10. Be3 {[%clk 0:02:59]}  c5 {[%clk 0:02:58]} 11. Nd2 {[%clk 0:02:58]}  Be6 {[%clk 0:02:37]} 12. f4 {[%clk 0:02:58]}  exf4 {[%clk 0:02:37]} 13. Rxf4 {[%clk 0:02:58]}  Nd7 {[%clk 0:02:35]} 14. Rf2 {[%clk 0:02:51]}  Bg5 {[%clk 0:02:33]} 15. Qe2 {[%clk 0:02:46]}  Bxe3 {[%clk 0:02:31]} 16. Qxe3 {[%clk 0:02:46]}  h6 {[%clk 0:02:23]} 17. Raf1 {[%clk 0:02:45]}  Qg5 {[%clk 0:02:11]} 18. Qxg5 {[%clk 0:02:40]}  hxg5 {[%clk 0:02:11]} 19. Nf3 {[%clk 0:02:37]}  f6 {[%clk 0:02:10]} 20. Nd1 {[%clk 0:02:31]}  g4 {[%clk 0:02:06]} 21. hxg4 {[%clk 0:02:31]}  Bxg4 {[%clk 0:02:06]} 22. Ne3 {[%clk 0:02:30]}  Be6 {[%clk 0:02:00]} 23. Nh4 {[%clk 0:02:25]}  Ne5 {[%clk 0:01:56]} 24. Nhf5 {[%clk 0:02:23]}  Rad8 {[%clk 0:01:55]} 25. Ne7+ {[%clk 0:02:15]}  Kf7 {[%clk 0:01:53]} 26. N7d5 {[%clk 0:02:15]}  Rh8 {[%clk 0:01:37]} 27. Rxf6+ {[%clk 0:02:05]}  gxf6 {[%clk 0:01:35]} 28. Rxf6+ {[%clk 0:02:05]}  Kg7 {[%clk 0:01:32]} 29. Rxe6 {[%clk 0:02:05]}  Nf7 {[%clk 0:00:59]} 30. Nf5+ {[%clk 0:02:03]}  Kf8 {[%clk 0:00:56]} 31. Re7 {[%clk 0:01:51]}  b5 {[%clk 0:00:27]} 32. Rb7 {[%clk 0:01:48]}  Rh5 {[%clk 0:00:18]} 33. Nf4 {[%clk 0:01:38]}  Rh8 {[%clk 0:00:04]} 34. Ne6+ {[%clk 0:01:31]}  Ke8 {[%clk 0:00:04]} 35. Re7# {[%clk 0:01:29]} 1-0


[Site "https://www.chess.com"]

[Event "Titled Tuesday Blitz November 07 Early 2023"]
[White "Kula, Robert"]
[Black "Demin, Vladimir"]
[WhiteFideId "1101218"]
[BlackFideId "4167457"]
[WhiteElo "2264"]
[BlackElo "2547"]
[Result "0-1"]
[Round "4"]
[TimeControl "180+1"]
[Date "2023.11.07"]
[WhiteClock "0:00:05"]
[BlackClock "0:00:59"]
[Board "126"]

1. d4 {[%clk 0:03:00]}  Nf6 {[%clk 0:02:59]} 2. c4 {[%clk 0:03:00]}  e6 {[%clk 0:02:57]} 3. Nf3 {[%clk 0:03:00]}  d5 {[%clk 0:02:57]} 4. e3 {[%clk 0:02:58]}  c5 {[%clk 0:02:56]} 5. Nc3 {[%clk 0:02:57]}  Nc6 {[%clk 0:02:55]} 6. b3 {[%clk 0:02:56]}  cxd4 {[%clk 0:02:52]} 7. exd4 {[%clk 0:02:55]}  Bb4 {[%clk 0:02:53]} 8. Bd2 {[%clk 0:02:54]}  O-O {[%clk 0:02:50]} 9. c5 {[%clk 0:02:53]}  e5 {[%clk 0:02:45]} 10. dxe5 {[%clk 0:02:44]}  Re8 {[%clk 0:02:44]} 11. Be2 {[%clk 0:02:39]}  Nxe5 {[%clk 0:02:44]} 12. O-O {[%clk 0:02:19]}  Bxc5 {[%clk 0:02:34]} 13. Bg5 {[%clk 0:02:13]}  h6 {[%clk 0:02:23]} 14. Bxf6 {[%clk 0:02:12]}  Qxf6 {[%clk 0:02:24]} 15. Nxd5 {[%clk 0:02:10]}  Qd6 {[%clk 0:02:12]} 16. Nxe5 {[%clk 0:01:55]}  Rxe5 {[%clk 0:02:08]} 17. Bf3 {[%clk 0:01:55]}  Bg4 {[%clk 0:01:52]} 18. Nc3 {[%clk 0:01:25]}  Qxd1 {[%clk 0:01:46]} 19. Bxd1 {[%clk 0:01:24]}  Bf5 {[%clk 0:01:40]} 20. Bf3 {[%clk 0:01:19]}  Bd4 {[%clk 0:01:21]} 21. Rac1 {[%clk 0:01:17]}  Rae8 {[%clk 0:01:14]} 22. Bxb7 {[%clk 0:01:12]}  Bd3 {[%clk 0:01:13]} 23. Rfd1 {[%clk 0:01:08]}  Bxc3 {[%clk 0:01:12]} 24. g3 {[%clk 0:00:15]}  Re1+ {[%clk 0:01:09]} 25. Kg2 {[%clk 0:00:15]}  Rxd1 {[%clk 0:01:08]} 26. Rxd1 {[%clk 0:00:15]}  Be4+ {[%clk 0:01:06]} 27. Bxe4 {[%clk 0:00:14]}  Rxe4 {[%clk 0:01:06]} 28. Rd7 {[%clk 0:00:15]}  a5 {[%clk 0:01:03]} 29. Rc7 {[%clk 0:00:13]}  Bb4 {[%clk 0:01:02]} 30. Ra7 {[%clk 0:00:07]}  Re2 {[%clk 0:00:58]} 31. a3 {[%clk 0:00:07]}  Rxf2+ {[%clk 0:00:57]} 32. Kxf2 {[%clk 0:00:06]}  Bc5+ {[%clk 0:00:58]} 33. Ke2 {[%clk 0:00:07]}  Bxa7 {[%clk 0:00:58]} 34. Kd3 {[%clk 0:00:07]}  Bc5 {[%clk 0:00:58]} 35. a4 {[%clk 0:00:05]}  Bb4 {[%clk 0:00:57]} 36. Kc4 {[%clk 0:00:05]}  f5 {[%clk 0:00:56]} 37. Kd5 {[%clk 0:00:05]}  Kf7 {[%clk 0:00:56]} 38. Ke5 {[%clk 0:00:06]}  g6 {[%clk 0:00:56]} 39. h4 {[%clk 0:00:06]}  Bc3+ {[%clk 0:00:56]} 40. Kf4 {[%clk 0:00:06]}  Kf6 {[%clk 0:00:56]} 41. h5 {[%clk 0:00:07]}  g5+ {[%clk 0:00:55]} 42. Ke3 {[%clk 0:00:07]}  Ke5 {[%clk 0:00:56]} 43. Kd3 {[%clk 0:00:07]}  Bb4 {[%clk 0:00:56]} 44. Kc4 {[%clk 0:00:08]}  f4 {[%clk 0:00:57]} 45. g4 {[%clk 0:00:08]}  f3 {[%clk 0:00:57]} 46. Kd3 {[%clk 0:00:08]}  Kf4 {[%clk 0:00:58]} 47. Kd4 {[%clk 0:00:08]}  Kxg4 {[%clk 0:00:59]} 48. Ke3 {[%clk 0:00:08]}  Kg3 {[%clk 0:00:59]} 49. Ke4 {[%clk 0:00:05]}  f2 {[%clk 0:00:59]} 0-1


[Site "https://www.chess.com"]

[Event "Titled Tuesday Blitz November 07 Early 2023"]
[White "Stepanencu, Nicodim-Cosmin"]
[Black "Molina Carretero, Daniel"]
[WhiteFideId "1256220"]
[BlackFideId "32071914"]
[WhiteElo "2602"]
[BlackElo "2418"]
[Result "0-1"]
[Round "4"]
[TimeControl "180+1"]
[Date "2023.11.07"]
[WhiteClock "0:02:24"]
[BlackClock "0:02:41"]
[Board "137"]

1. c4 {[%clk 0:02:57]}  Nf6 {[%clk 0:02:59]} 2. Nc3 {[%clk 0:02:57]}  e6 {[%clk 0:02:59]} 3. Nf3 {[%clk 0:02:54]}  d5 {[%clk 0:02:58]} 4. e3 {[%clk 0:02:49]}  Be7 {[%clk 0:02:57]} 5. b3 {[%clk 0:02:48]}  O-O {[%clk 0:02:57]} 6. Bb2 {[%clk 0:02:48]}  c5 {[%clk 0:02:54]} 7. cxd5 {[%clk 0:02:47]}  Nxd5 {[%clk 0:02:54]} 8. Rc1 {[%clk 0:02:44]}  b6 {[%clk 0:02:49]} 9. Be2 {[%clk 0:02:43]}  Bb7 {[%clk 0:02:49]} 10. O-O {[%clk 0:02:44]}  Nc6 {[%clk 0:02:48]} 11. a3 {[%clk 0:02:43]}  Rc8 {[%clk 0:02:48]} 12. d4 {[%clk 0:02:39]}  cxd4 {[%clk 0:02:46]} 13. Nxd4 {[%clk 0:02:40]}  Nxd4 {[%clk 0:02:45]} 14. Qxd4 {[%clk 0:02:40]}  Bf6 {[%clk 0:02:45]} 15. Qd2 {[%clk 0:02:26]}  Nxc3 {[%clk 0:02:42]} 16. Bxc3 {[%clk 0:02:24]}  Bxc3 {[%clk 0:02:41]} 0-1


[Site "https://www.chess.com"]

[Event "Titled Tuesday Blitz November 07 Early 2023"]
[White "Derjabin, Ilja"]
[Black "Todorovic, Bojan"]
[WhiteFideId "14104768"]
[BlackFideId "917087"]
[WhiteElo "2563"]
[BlackElo "2409"]
[Result "0-1"]
[Round "4"]
[TimeControl "180+1"]
[Date "2023.11.07"]
[WhiteClock "0:00:01"]
[BlackClock "0:00:01"]
[Board "142"]

1. d4 {[%clk 0:03:00]}  g6 {[%clk 0:02:59]} 2. c4 {[%clk 0:03:00]}  Bg7 {[%clk 0:02:58]} 3. Nc3 {[%clk 0:03:01]}  d6 {[%clk 0:02:58]} 4. e4 {[%clk 0:03:01]}  Nc6 {[%clk 0:02:51]} 5. d5 {[%clk 0:03:00]}  Ne5 {[%clk 0:02:51]} 6. Nge2 {[%clk 0:02:55]}  c6 {[%clk 0:02:45]} 7. Ng3 {[%clk 0:02:52]}  Nf6 {[%clk 0:02:42]} 8. f4 {[%clk 0:02:51]}  Ned7 {[%clk 0:02:41]} 9. Be2 {[%clk 0:02:50]}  O-O {[%clk 0:02:34]} 10. O-O {[%clk 0:02:49]}  cxd5 {[%clk 0:02:27]} 11. cxd5 {[%clk 0:02:49]}  a6 {[%clk 0:02:26]} 12. Be3 {[%clk 0:02:44]}  b5 {[%clk 0:02:25]} 13. Rc1 {[%clk 0:02:37]}  Bb7 {[%clk 0:02:24]} 14. b4 {[%clk 0:02:33]}  Rc8 {[%clk 0:02:23]} 15. a4 {[%clk 0:02:32]}  Rxc3 {[%clk 0:02:07]} 16. Rxc3 {[%clk 0:02:30]}  Ng4 {[%clk 0:02:07]} 17. Bxg4 {[%clk 0:02:17]}  Bxc3 {[%clk 0:02:06]} 18. axb5 {[%clk 0:02:17]}  Bxb4 {[%clk 0:01:59]} 19. Kh1 {[%clk 0:01:30]}  axb5 {[%clk 0:01:47]} 20. Ne2 {[%clk 0:01:16]}  Bc5 {[%clk 0:01:40]} 21. Nd4 {[%clk 0:01:14]}  Nf6 {[%clk 0:01:31]} 22. Bf3 {[%clk 0:01:08]}  Qb6 {[%clk 0:01:30]} 23. Re1 {[%clk 0:01:00]}  b4 {[%clk 0:01:30]} 24. Bg1 {[%clk 0:00:56]}  Ra8 {[%clk 0:01:00]} 25. h3 {[%clk 0:00:53]}  Ra3 {[%clk 0:00:55]} 26. e5 {[%clk 0:00:38]}  Nxd5 {[%clk 0:00:49]} 27. exd6 {[%clk 0:00:38]}  exd6 {[%clk 0:00:18]} 28. Bxd5 {[%clk 0:00:37]}  Bxd5 {[%clk 0:00:17]} 29. Re8+ {[%clk 0:00:37]}  Kg7 {[%clk 0:00:17]} 30. Nf5+ {[%clk 0:00:37]}  gxf5 {[%clk 0:00:15]} 31. Qh5 {[%clk 0:00:15]}  Rg3 {[%clk 0:00:08]} 32. Qxf5 {[%clk 0:00:02]}  Bxg2+ {[%clk 0:00:05]} 33. Kh2 {[%clk 0:00:03]}  Rg6 {[%clk 0:00:05]} 34. Rg8+ {[%clk 0:00:01]}  Kxg8 {[%clk 0:00:03]} 35. Qc8+ {[%clk 0:00:01]}  Kg7 {[%clk 0:00:03]} 36. Bd4+ {[%clk 0:00:01]}  Bxd4 {[%clk 0:00:02]} 37. f5 {[%clk 0:00:01]}  Bg1# {[%clk 0:00:01]} 0-1


[Site "https://www.chess.com"]

[Event "Titled Tuesday Blitz November 07 Early 2023"]
[White "Xie, Bryan"]
[Black "Jia, Haoxiang"]
[WhiteFideId "30941296"]
[BlackFideId "8602999"]
[WhiteElo "2408"]
[BlackElo "2553"]
[Result "0-1"]
[Round "4"]
[TimeControl "180+1"]
[Date "2023.11.07"]
[WhiteClock "0:00:00"]
[BlackClock "0:01:54"]
[Board "143"]

1. e4 {[%clk 0:00:52]}  c5 {[%clk 0:02:58]} 2. Nf3 {[%clk 0:00:51]}  d6 {[%clk 0:02:58]} 3. d4 {[%clk 0:00:52]}  cxd4 {[%clk 0:02:59]} 4. Nxd4 {[%clk 0:00:52]}  Nf6 {[%clk 0:02:59]} 5. Nc3 {[%clk 0:00:53]}  g6 {[%clk 0:03:00]} 6. Be3 {[%clk 0:00:53]}  Bg7 {[%clk 0:03:01]} 7. f3 {[%clk 0:00:53]}  O-O {[%clk 0:03:01]} 8. Qd2 {[%clk 0:00:54]}  Nc6 {[%clk 0:03:01]} 9. Bc4 {[%clk 0:00:55]}  Bd7 {[%clk 0:03:01]} 10. O-O-O {[%clk 0:00:55]}  Rc8 {[%clk 0:03:01]} 11. Bb3 {[%clk 0:00:55]}  Ne5 {[%clk 0:03:02]} 12. Kb1 {[%clk 0:00:54]}  Nc4 {[%clk 0:03:02]} 13. Bxc4 {[%clk 0:00:55]}  Rxc4 {[%clk 0:03:03]} 14. g4 {[%clk 0:00:52]}  b5 {[%clk 0:03:03]} 15. Ndxb5 {[%clk 0:00:52]}  Bxb5 {[%clk 0:02:59]} 16. Nxb5 {[%clk 0:00:52]}  Qb8 {[%clk 0:02:59]} 17. Nd4 {[%clk 0:00:36]}  Rfc8 {[%clk 0:02:56]} 18. b3 {[%clk 0:00:35]}  d5 {[%clk 0:02:48]} 19. e5 {[%clk 0:00:33]}  Nd7 {[%clk 0:02:32]} 20. f4 {[%clk 0:00:30]}  Nc5 {[%clk 0:02:32]} 21. Ka1 {[%clk 0:00:26]}  Ne4 {[%clk 0:02:32]} 22. Qc1 {[%clk 0:00:21]}  Rc3 {[%clk 0:02:28]} 23. Bd2 {[%clk 0:00:16]}  R3c7 {[%clk 0:02:25]} 24. Ba5 {[%clk 0:00:11]}  Rc5 {[%clk 0:02:24]} 25. Be1 {[%clk 0:00:10]}  f6 {[%clk 0:02:23]} 26. Ne6 {[%clk 0:00:06]}  Rxc2 {[%clk 0:02:22]} 27. Qxc2 {[%clk 0:00:07]}  Rxc2 {[%clk 0:02:21]} 28. Rxd5 {[%clk 0:00:07]}  Kf7 {[%clk 0:02:10]} 29. f5 {[%clk 0:00:04]}  fxe5 {[%clk 0:01:58]} 30. Nd8+ {[%clk 0:00:01]}  Kg8 {[%clk 0:01:57]} 31. Ne6 {[%clk 0:00:00]}  Nd6 {[%clk 0:01:54]} 0-1


[Site "https://www.chess.com"]

[Event "Titled Tuesday Blitz November 07 Early 2023"]
[White "Avazkhonov, Alikhon"]
[Black "Begunov, Konstantin"]
[WhiteFideId "14208504"]
[BlackFideId "4118510"]
[WhiteElo "2544"]
[BlackElo "2408"]
[Result "1-0"]
[Round "4"]
[TimeControl "180+1"]
[Date "2023.11.07"]
[WhiteClock "0:00:07"]
[BlackClock "0:00:21"]
[Board "145"]

1. d4 {[%clk 0:02:57]}  d5 {[%clk 0:03:00]} 2. c4 {[%clk 0:02:55]}  c6 {[%clk 0:03:00]} 3. Nc3 {[%clk 0:02:54]}  Nf6 {[%clk 0:03:01]} 4. Nf3 {[%clk 0:02:49]}  dxc4 {[%clk 0:03:00]} 5. a4 {[%clk 0:02:48]}  Bg4 {[%clk 0:03:00]} 6. Ne5 {[%clk 0:02:49]}  Bh5 {[%clk 0:03:00]} 7. f3 {[%clk 0:02:34]}  Nfd7 {[%clk 0:02:59]} 8. Nxc4 {[%clk 0:02:25]}  e5 {[%clk 0:02:59]} 9. Nxe5 {[%clk 0:02:19]}  Nxe5 {[%clk 0:02:59]} 10. dxe5 {[%clk 0:02:20]}  Nd7 {[%clk 0:03:00]} 11. f4 {[%clk 0:01:57]}  Bb4 {[%clk 0:02:56]} 12. g3 {[%clk 0:01:56]}  Qe7 {[%clk 0:02:14]} 13. Bg2 {[%clk 0:01:55]}  f6 {[%clk 0:02:05]} 14. exf6 {[%clk 0:01:32]}  Nxf6 {[%clk 0:02:05]} 15. Qc2 {[%clk 0:01:31]}  Nd5 {[%clk 0:01:39]} 16. O-O {[%clk 0:01:08]}  Ne3 {[%clk 0:01:34]} 17. Bxe3 {[%clk 0:01:07]}  Qxe3+ {[%clk 0:01:35]} 18. Kh1 {[%clk 0:01:07]}  Bg6 {[%clk 0:01:16]} 19. f5 {[%clk 0:01:02]}  Bf7 {[%clk 0:01:14]} 20. f6 {[%clk 0:00:33]}  O-O {[%clk 0:01:06]} 21. Ne4 {[%clk 0:00:24]}  Bb3 {[%clk 0:00:55]} 22. Qd3 {[%clk 0:00:19]}  Qxd3 {[%clk 0:00:51]} 23. exd3 {[%clk 0:00:20]}  Rad8 {[%clk 0:00:49]} 24. fxg7 {[%clk 0:00:19]}  Rxf1+ {[%clk 0:00:47]} 25. Rxf1 {[%clk 0:00:19]}  Rxd3 {[%clk 0:00:44]} 26. Nf6+ {[%clk 0:00:16]}  Kxg7 {[%clk 0:00:44]} 27. Be4 {[%clk 0:00:13]}  Rd1 {[%clk 0:00:41]} 28. Ne8+ {[%clk 0:00:11]}  Kh6 {[%clk 0:00:39]} 29. Rxd1 {[%clk 0:00:10]}  Bxd1 {[%clk 0:00:40]} 30. a5 {[%clk 0:00:08]}  Bxa5 {[%clk 0:00:38]} 31. Nd6 {[%clk 0:00:09]}  b5 {[%clk 0:00:33]} 32. Bxc6 {[%clk 0:00:09]}  b4 {[%clk 0:00:30]} 33. Nc4 {[%clk 0:00:09]}  Bd8 {[%clk 0:00:27]} 34. Ne3 {[%clk 0:00:09]}  Bb3 {[%clk 0:00:25]} 35. h4 {[%clk 0:00:08]}  Bf6 {[%clk 0:00:23]} 36. Be8 {[%clk 0:00:07]}  Bxb2 {[%clk 0:00:21]} 37. Nf5# {[%clk 0:00:07]} 1-0


[Site "https://www.chess.com"]

[Event "Titled Tuesday Blitz November 07 Early 2023"]
[White "Bashirli, Saadat"]
[Black "Kotlyar, Kirill"]
[WhiteFideId "13429990"]
[BlackFideId "24145599"]
[WhiteElo "2405"]
[BlackElo "2543"]
[Result "1-0"]
[Round "4"]
[TimeControl "180+1"]
[Date "2023.11.07"]
[WhiteClock "0:00:26"]
[BlackClock "0:00:00"]
[Board "146"]

1. e4 {[%clk 0:03:00]}  c5 {[%clk 0:02:58]} 2. Nf3 {[%clk 0:03:01]}  Nc6 {[%clk 0:02:57]} 3. Bb5 {[%clk 0:02:59]}  g6 {[%clk 0:02:56]} 4. c3 {[%clk 0:02:58]}  Bg7 {[%clk 0:02:52]} 5. d4 {[%clk 0:02:57]}  cxd4 {[%clk 0:02:43]} 6. cxd4 {[%clk 0:02:58]}  a6 {[%clk 0:02:39]} 7. Bc4 {[%clk 0:02:56]}  b5 {[%clk 0:02:35]} 8. Bb3 {[%clk 0:02:50]}  Na5 {[%clk 0:02:16]} 9. Bd5 {[%clk 0:02:48]}  Bb7 {[%clk 0:02:15]} 10. Bxb7 {[%clk 0:02:44]}  Nxb7 {[%clk 0:02:15]} 11. O-O {[%clk 0:02:44]}  Nf6 {[%clk 0:02:15]} 12. Re1 {[%clk 0:02:43]}  O-O {[%clk 0:02:15]} 13. Bg5 {[%clk 0:02:42]}  d5 {[%clk 0:02:08]} 14. e5 {[%clk 0:02:35]}  Ne4 {[%clk 0:02:07]} 15. Bf4 {[%clk 0:02:33]}  e6 {[%clk 0:02:01]} 16. Nbd2 {[%clk 0:02:31]}  Nxd2 {[%clk 0:01:58]} 17. Qxd2 {[%clk 0:02:32]}  Rc8 {[%clk 0:01:58]} 18. Rac1 {[%clk 0:02:31]}  Qb6 {[%clk 0:01:46]} 19. h3 {[%clk 0:02:26]}  Na5 {[%clk 0:01:41]} 20. b3 {[%clk 0:02:25]}  Rfe8 {[%clk 0:01:38]} 21. Bg3 {[%clk 0:02:19]}  Bf8 {[%clk 0:01:32]} 22. Qf4 {[%clk 0:02:14]}  Nc6 {[%clk 0:01:25]} 23. Ng5 {[%clk 0:02:10]}  Re7 {[%clk 0:01:14]} 24. Qh4 {[%clk 0:02:05]}  h6 {[%clk 0:01:11]} 25. Nf3 {[%clk 0:02:04]}  Rec7 {[%clk 0:01:09]} 26. Rcd1 {[%clk 0:01:57]}  Nb4 {[%clk 0:01:07]} 27. Bf4 {[%clk 0:01:55]}  g5 {[%clk 0:00:46]} 28. Qg4 {[%clk 0:01:51]}  Bg7 {[%clk 0:00:37]} 29. Be3 {[%clk 0:01:42]}  Nc2 {[%clk 0:00:25]} 30. Re2 {[%clk 0:01:42]}  Nxe3 {[%clk 0:00:22]} 31. fxe3 {[%clk 0:01:41]}  Rc2 {[%clk 0:00:21]} 32. Red2 {[%clk 0:01:39]}  Qa5 {[%clk 0:00:19]} 33. h4 {[%clk 0:01:34]}  gxh4 {[%clk 0:00:17]} 34. Qxh4 {[%clk 0:01:27]}  Qxa2 {[%clk 0:00:17]} 35. b4 {[%clk 0:01:09]}  Qb3 {[%clk 0:00:11]} 36. Qf4 {[%clk 0:01:06]}  Qxb4 {[%clk 0:00:09]} 37. Rxc2 {[%clk 0:00:46]}  Rxc2 {[%clk 0:00:10]} 38. Rf1 {[%clk 0:00:46]}  Qc4 {[%clk 0:00:08]} 39. Ne1 {[%clk 0:00:44]}  Qc7 {[%clk 0:00:04]} 40. Nxc2 {[%clk 0:00:43]}  h5 {[%clk 0:00:04]} 41. Ne1 {[%clk 0:00:34]}  a5 {[%clk 0:00:03]} 42. Nf3 {[%clk 0:00:33]}  b4 {[%clk 0:00:02]} 43. Ng5 {[%clk 0:00:33]}  a4 {[%clk 0:00:02]} 44. Qxf7+ {[%clk 0:00:31]}  Qxf7 {[%clk 0:00:01]} 45. Rxf7 {[%clk 0:00:30]}  a3 {[%clk 0:00:01]} 46. Ra7 {[%clk 0:00:27]}  Bf8 {[%clk 0:00:00]} 47. Nxe6 {[%clk 0:00:26]} 1-0


[Site "https://www.chess.com"]